[Event "Titled Tuesday Blitz August 08 Early 2023"]
[White "Der_Balak_3Halak"]
[Black "Eynullayev, Atilla"]
[BlackFideId "13413570"]
[WhiteElo "2367"]
[BlackElo "2516"]
[Result "0-1"]
[Round "4"]
[TimeControl "180+1"]
[Date "2023.08.08"]
[WhiteClock "0:00:18"]
[BlackClock "0:00:47"]
[Board "173"]

1. e4 {[%clk 0:03:00]}  c5 {[%clk 0:02:59]} 2. Nf3 {[%clk 0:03:00]}  d6 {[%clk 0:02:59]} 3. Bb5+ {[%clk 0:03:00]}  Nd7 {[%clk 0:02:56]} 4. O-O {[%clk 0:02:59]}  a6 {[%clk 0:02:55]} 5. Bxd7+ {[%clk 0:02:59]}  Bxd7 {[%clk 0:02:55]} 6. c3 {[%clk 0:03:00]}  Nf6 {[%clk 0:02:54]} 7. Re1 {[%clk 0:03:00]}  e6 {[%clk 0:02:53]} 8. d4 {[%clk 0:03:00]}  cxd4 {[%clk 0:02:53]} 9. cxd4 {[%clk 0:03:01]}  Be7 {[%clk 0:02:54]} 10. Nc3 {[%clk 0:02:58]}  O-O {[%clk 0:02:54]} 11. Bg5 {[%clk 0:02:47]}  h6 {[%clk 0:02:52]} 12. Bh4 {[%clk 0:02:47]}  Bc6 {[%clk 0:02:45]} 13. d5 {[%clk 0:02:43]}  Bd7 {[%clk 0:02:44]} 14. e5 {[%clk 0:02:27]}  Nxd5 {[%clk 0:02:33]} 15. Bxe7 {[%clk 0:02:22]}  Nxe7 {[%clk 0:02:17]} 16. Qxd6 {[%clk 0:02:02]}  Nf5 {[%clk 0:02:17]} 17. Qb4 {[%clk 0:01:59]}  Bc6 {[%clk 0:02:17]} 18. Rad1 {[%clk 0:01:53]}  Qe7 {[%clk 0:01:08]} 19. Qxe7 {[%clk 0:01:22]}  Nxe7 {[%clk 0:01:07]} 20. Nd2 {[%clk 0:01:11]}  Rad8 {[%clk 0:01:00]} 21. Nc4 {[%clk 0:01:05]}  Nf5 {[%clk 0:01:01]} 22. Nd6 {[%clk 0:00:51]}  Nxd6 {[%clk 0:00:59]} 23. exd6 {[%clk 0:00:52]}  Rfe8 {[%clk 0:00:55]} 24. f4 {[%clk 0:00:44]}  f6 {[%clk 0:00:56]} 25. Ne4 {[%clk 0:00:39]}  Kf7 {[%clk 0:00:50]} 26. Nc5 {[%clk 0:00:37]}  g6 {[%clk 0:00:45]} 27. Kf2 {[%clk 0:00:32]}  Bd5 {[%clk 0:00:45]} 28. a3 {[%clk 0:00:28]}  Rxd6 {[%clk 0:00:44]} 29. Nxb7 {[%clk 0:00:28]}  Rb6 {[%clk 0:00:44]} 30. Nc5 {[%clk 0:00:20]}  Rxb2+ {[%clk 0:00:44]} 31. Re2 {[%clk 0:00:20]}  Rxe2+ {[%clk 0:00:45]} 32. Kxe2 {[%clk 0:00:21]}  Bxg2 {[%clk 0:00:44]} 33. Rd7+ {[%clk 0:00:21]}  Re7 {[%clk 0:00:44]} 34. Rxe7+ {[%clk 0:00:22]}  Kxe7 {[%clk 0:00:44]} 35. Nxa6 {[%clk 0:00:23]}  Kd6 {[%clk 0:00:43]} 36. Kd3 {[%clk 0:00:22]}  Bf1+ {[%clk 0:00:42]} 37. Kd4 {[%clk 0:00:22]}  Bxa6 {[%clk 0:00:43]} 38. a4 {[%clk 0:00:22]}  e5+ {[%clk 0:00:44]} 39. fxe5+ {[%clk 0:00:23]}  fxe5+ {[%clk 0:00:44]} 40. Ke4 {[%clk 0:00:24]}  Bb7+ {[%clk 0:00:45]} 41. Ke3 {[%clk 0:00:24]}  Kd5 {[%clk 0:00:46]} 42. a5 {[%clk 0:00:25]}  e4 {[%clk 0:00:46]} 43. h4 {[%clk 0:00:25]}  g5 {[%clk 0:00:46]} 44. h5 {[%clk 0:00:24]}  Ke5 {[%clk 0:00:45]} 45. Kf2 {[%clk 0:00:23]}  Kf4 {[%clk 0:00:45]} 46. Kg2 {[%clk 0:00:22]}  Ba6 {[%clk 0:00:46]} 47. Kf2 {[%clk 0:00:22]}  e3+ {[%clk 0:00:46]} 48. Ke1 {[%clk 0:00:22]}  g4 {[%clk 0:00:47]} 49. Kd1 {[%clk 0:00:18]}  g3 {[%clk 0:00:47]} 0-1


[Site "https://www.chess.com"]

[Event "Titled Tuesday Blitz August 08 Early 2023"]
[White "ATM622"]
[Black "Krzywda, Andrzej"]
[BlackFideId "1114565"]
[WhiteElo "2505"]
[BlackElo "2363"]
[Result "1-0"]
[Round "4"]
[TimeControl "180+1"]
[Date "2023.08.08"]
[WhiteClock "0:00:02"]
[BlackClock "0:00:06"]
[Board "175"]

1. d4 {[%clk 0:03:00]}  d5 {[%clk 0:02:59]} 2. c4 {[%clk 0:03:00]}  dxc4 {[%clk 0:03:00]} 3. e3 {[%clk 0:02:59]}  Nf6 {[%clk 0:02:58]} 4. Bxc4 {[%clk 0:02:59]}  e6 {[%clk 0:02:58]} 5. Nf3 {[%clk 0:02:59]}  c5 {[%clk 0:02:59]} 6. O-O {[%clk 0:02:58]}  Nc6 {[%clk 0:03:00]} 7. Nc3 {[%clk 0:02:58]}  a6 {[%clk 0:02:59]} 8. a4 {[%clk 0:02:57]}  cxd4 {[%clk 0:02:59]} 9. exd4 {[%clk 0:02:57]}  Be7 {[%clk 0:02:59]} 10. d5 {[%clk 0:02:58]}  exd5 {[%clk 0:02:56]} 11. Nxd5 {[%clk 0:02:58]}  Nxd5 {[%clk 0:02:55]} 12. Bxd5 {[%clk 0:02:59]}  O-O {[%clk 0:02:50]} 13. Bf4 {[%clk 0:02:56]}  Qb6 {[%clk 0:02:44]} 14. Qb3 {[%clk 0:02:49]}  Nb4 {[%clk 0:02:34]} 15. Be3 {[%clk 0:02:33]}  Qg6 {[%clk 0:02:24]} 16. Bc4 {[%clk 0:02:20]}  Bh3 {[%clk 0:02:01]} 17. Ne1 {[%clk 0:02:15]}  b5 {[%clk 0:01:52]} 18. Be2 {[%clk 0:02:10]}  bxa4 {[%clk 0:01:36]} 19. Rxa4 {[%clk 0:02:07]}  Be6 {[%clk 0:01:31]} 20. Bc4 {[%clk 0:02:01]}  Bxc4 {[%clk 0:01:25]} 21. Qxc4 {[%clk 0:02:00]}  Rac8 {[%clk 0:01:25]} 22. Qb3 {[%clk 0:01:53]}  Nc2 {[%clk 0:01:16]} 23. Nxc2 {[%clk 0:01:52]}  Qxc2 {[%clk 0:01:17]} 24. Qxc2 {[%clk 0:01:52]}  Rxc2 {[%clk 0:01:17]} 25. Rb1 {[%clk 0:01:47]}  Bf6 {[%clk 0:01:16]} 26. b4 {[%clk 0:01:42]}  Rc6 {[%clk 0:01:03]} 27. Bc5 {[%clk 0:01:40]}  Rb8 {[%clk 0:01:01]} 28. Rd1 {[%clk 0:01:40]}  h5 {[%clk 0:00:57]} 29. g3 {[%clk 0:01:39]}  Rb5 {[%clk 0:00:53]} 30. Rd6 {[%clk 0:01:25]}  Rxd6 {[%clk 0:00:46]} 31. Bxd6 {[%clk 0:01:25]}  Bc3 {[%clk 0:00:41]} 32. Kf1 {[%clk 0:01:11]}  a5 {[%clk 0:00:37]} 33. bxa5 {[%clk 0:01:05]}  Rxa5 {[%clk 0:00:37]} 34. Rc4 {[%clk 0:01:05]}  Bf6 {[%clk 0:00:35]} 35. h4 {[%clk 0:01:00]}  Ra2 {[%clk 0:00:35]} 36. Kg2 {[%clk 0:00:59]}  g6 {[%clk 0:00:35]} 37. Bf4 {[%clk 0:00:55]}  Kg7 {[%clk 0:00:34]} 38. Be3 {[%clk 0:00:55]}  Ra8 {[%clk 0:00:32]} 39. Kf3 {[%clk 0:00:55]}  Re8 {[%clk 0:00:32]} 40. Rc6 {[%clk 0:00:54]}  Re6 {[%clk 0:00:31]} 41. Rc8 {[%clk 0:00:54]}  Ra6 {[%clk 0:00:30]} 42. Bc5 {[%clk 0:00:53]}  Ra1 {[%clk 0:00:27]} 43. Bf8+ {[%clk 0:00:48]}  Kh7 {[%clk 0:00:27]} 44. Bd6 {[%clk 0:00:43]}  Ra7 {[%clk 0:00:24]} 45. Ke4 {[%clk 0:00:41]}  Rd7 {[%clk 0:00:24]} 46. Rc6 {[%clk 0:00:38]}  Kg7 {[%clk 0:00:22]} 47. Bc5 {[%clk 0:00:25]}  Rd8 {[%clk 0:00:20]} 48. Rc7 {[%clk 0:00:20]}  Re8+ {[%clk 0:00:20]} 49. Kf3 {[%clk 0:00:19]}  Rd8 {[%clk 0:00:20]} 50. Be3 {[%clk 0:00:19]}  Re8 {[%clk 0:00:20]} 51. Rc4 {[%clk 0:00:17]}  Rd8 {[%clk 0:00:20]} 52. Ke4 {[%clk 0:00:17]}  Re8+ {[%clk 0:00:19]} 53. Kd5 {[%clk 0:00:17]}  Re6 {[%clk 0:00:19]} 54. Rc8 {[%clk 0:00:15]}  Re5+ {[%clk 0:00:19]} 55. Kd6 {[%clk 0:00:14]}  Ra5 {[%clk 0:00:16]} 56. Kc6 {[%clk 0:00:12]}  Ra2 {[%clk 0:00:16]} 57. Kd7 {[%clk 0:00:11]}  Rb2 {[%clk 0:00:14]} 58. Ke8 {[%clk 0:00:11]}  Re2 {[%clk 0:00:13]} 59. Rc7 {[%clk 0:00:10]}  Bd4 {[%clk 0:00:10]} 60. Rxf7+ {[%clk 0:00:10]}  Kg8 {[%clk 0:00:10]} 61. Re7 {[%clk 0:00:09]}  Bxe3 {[%clk 0:00:10]} 62. fxe3 {[%clk 0:00:08]}  Rg2 {[%clk 0:00:10]} 63. e4 {[%clk 0:00:03]}  Rxg3 {[%clk 0:00:11]} 64. e5 {[%clk 0:00:03]}  Rg4 {[%clk 0:00:12]} 65. e6 {[%clk 0:00:03]}  Rxh4 {[%clk 0:00:12]} 66. Kd7 {[%clk 0:00:03]}  Rd4+ {[%clk 0:00:11]} 67. Kc6 {[%clk 0:00:03]}  h4 {[%clk 0:00:11]} 68. Rd7 {[%clk 0:00:03]}  Re4 {[%clk 0:00:11]} 69. Kd5 {[%clk 0:00:03]}  Re1 {[%clk 0:00:10]} 70. Rd8+ {[%clk 0:00:03]}  Kg7 {[%clk 0:00:10]} 71. Kd6 {[%clk 0:00:04]}  g5 {[%clk 0:00:10]} 72. e7 {[%clk 0:00:04]}  g4 {[%clk 0:00:09]} 73. e8=Q {[%clk 0:00:04]}  Rxe8 {[%clk 0:00:09]} 74. Rxe8 {[%clk 0:00:05]}  g3 {[%clk 0:00:08]} 75. Re4 {[%clk 0:00:03]}  g2 {[%clk 0:00:04]} 76. Rg4+ {[%clk 0:00:03]}  Kf6 {[%clk 0:00:04]} 77. Rxg2 {[%clk 0:00:04]}  Kf5 {[%clk 0:00:05]} 78. Rh2 {[%clk 0:00:02]}  Kg4 {[%clk 0:00:05]} 79. Ke5 {[%clk 0:00:02]}  Kg3 {[%clk 0:00:05]} 80. Ra2 {[%clk 0:00:03]}  h3 {[%clk 0:00:06]} 81. Ra3+ {[%clk 0:00:03]}  Kg2 {[%clk 0:00:06]} 82. Kf4 {[%clk 0:00:03]}  h2 {[%clk 0:00:06]} 83. Ra2+ {[%clk 0:00:03]}  Kg1 {[%clk 0:00:06]} 84. Kg3 {[%clk 0:00:02]}  h1=Q {[%clk 0:00:06]} 85. Ra1# {[%clk 0:00:02]} 1-0


[Site "https://www.chess.com"]

[Event "Titled Tuesday Blitz August 08 Early 2023"]
[White "Nithyalakshmi, Sivanesan"]
[Black "Perske, Thore"]
[WhiteFideId "5706955"]
[BlackFideId "12902195"]
[WhiteElo "2347"]
[BlackElo "2503"]
[Result "0-1"]
[Round "4"]
[TimeControl "180+1"]
[Date "2023.08.08"]
[WhiteClock "0:00:00"]
[BlackClock "0:00:55"]
[Board "176"]

1. e4 {[%clk 0:02:56]}  e6 {[%clk 0:02:59]} 2. d4 {[%clk 0:02:56]}  d5 {[%clk 0:02:59]} 3. Bd3 {[%clk 0:02:53]}  dxe4 {[%clk 0:02:54]} 4. Bxe4 {[%clk 0:02:53]}  Nf6 {[%clk 0:02:55]} 5. Bf3 {[%clk 0:02:53]}  c5 {[%clk 0:02:55]} 6. Ne2 {[%clk 0:02:52]}  Be7 {[%clk 0:02:54]} 7. O-O {[%clk 0:02:51]}  O-O {[%clk 0:02:55]} 8. c3 {[%clk 0:02:50]}  Nc6 {[%clk 0:02:45]} 9. Bxc6 {[%clk 0:02:50]}  bxc6 {[%clk 0:02:45]} 10. Re1 {[%clk 0:02:46]}  cxd4 {[%clk 0:02:41]} 11. Nxd4 {[%clk 0:02:43]}  Bb7 {[%clk 0:02:35]} 12. Qf3 {[%clk 0:02:37]}  Qb6 {[%clk 0:02:33]} 13. Qh3 {[%clk 0:02:33]}  c5 {[%clk 0:02:28]} 14. Nb3 {[%clk 0:02:28]}  Rfd8 {[%clk 0:02:16]} 15. N1d2 {[%clk 0:02:11]}  Qa6 {[%clk 0:01:57]} 16. Nf3 {[%clk 0:01:54]}  Rd3 {[%clk 0:01:51]} 17. Be3 {[%clk 0:01:53]}  Rc8 {[%clk 0:01:36]} 18. Ne5 {[%clk 0:01:50]}  Rd5 {[%clk 0:01:32]} 19. Ng4 {[%clk 0:01:44]}  Qa4 {[%clk 0:01:16]} 20. Nxf6+ {[%clk 0:01:28]}  Bxf6 {[%clk 0:01:17]} 21. Qg3 {[%clk 0:00:46]}  h5 {[%clk 0:01:10]} 22. Rad1 {[%clk 0:00:30]}  Rxd1 {[%clk 0:01:05]} 23. Rxd1 {[%clk 0:00:30]}  c4 {[%clk 0:01:01]} 24. Qd6 {[%clk 0:00:07]}  cxb3 {[%clk 0:00:58]} 25. axb3 {[%clk 0:00:00]}  Qxb3 {[%clk 0:00:55]} 0-1


[Site "https://www.chess.com"]

[Event "Titled Tuesday Blitz August 08 Early 2023"]
[White "Lopez Gracia, Fernando"]
[Black "Willy, Stephen"]
[WhiteFideId "2207184"]
[BlackFideId "30981468"]
[WhiteElo "2340"]
[BlackElo "2500"]
[Result "0-1"]
[Round "4"]
[TimeControl "180+1"]
[Date "2023.08.08"]
[WhiteClock "0:00:57"]
[BlackClock "0:01:09"]
[Board "177"]

1. e4 {[%clk 0:02:57]}  c5 {[%clk 0:02:58]} 2. Nf3 {[%clk 0:02:56]}  Nf6 {[%clk 0:02:56]} 3. e5 {[%clk 0:02:55]}  Nd5 {[%clk 0:02:56]} 4. Nc3 {[%clk 0:02:53]}  e6 {[%clk 0:02:53]} 5. Nxd5 {[%clk 0:02:48]}  exd5 {[%clk 0:02:54]} 6. c3 {[%clk 0:02:44]}  d6 {[%clk 0:02:51]} 7. d4 {[%clk 0:02:43]}  Nc6 {[%clk 0:02:49]} 8. exd6 {[%clk 0:02:42]}  cxd4 {[%clk 0:02:49]} 9. cxd4 {[%clk 0:02:39]}  Bxd6 {[%clk 0:02:47]} 10. Bd3 {[%clk 0:02:39]}  O-O {[%clk 0:02:46]} 11. O-O {[%clk 0:02:35]}  Bg4 {[%clk 0:02:45]} 12. Be3 {[%clk 0:02:28]}  Qf6 {[%clk 0:02:39]} 13. Be2 {[%clk 0:02:24]}  Rfe8 {[%clk 0:02:34]} 14. h3 {[%clk 0:02:24]}  Bh5 {[%clk 0:02:33]} 15. Qd2 {[%clk 0:02:04]}  h6 {[%clk 0:02:29]} 16. a3 {[%clk 0:02:03]}  Re4 {[%clk 0:02:26]} 17. Rfd1 {[%clk 0:01:59]}  Rae8 {[%clk 0:02:25]} 18. Rac1 {[%clk 0:01:58]}  Bf4 {[%clk 0:02:25]} 19. Rc3 {[%clk 0:01:42]}  a6 {[%clk 0:01:26]} 20. Bd3 {[%clk 0:01:29]}  Rxe3 {[%clk 0:01:20]} 21. fxe3 {[%clk 0:01:21]}  Bxe3+ {[%clk 0:01:18]} 22. Qxe3 {[%clk 0:01:15]}  Rxe3 {[%clk 0:01:19]} 23. Bh7+ {[%clk 0:01:15]}  Kxh7 {[%clk 0:01:18]} 24. Rxe3 {[%clk 0:01:16]}  Bg6 {[%clk 0:01:15]} 25. Ne5 {[%clk 0:01:13]}  Be4 {[%clk 0:01:14]} 26. Ng4 {[%clk 0:01:08]}  Qg5 {[%clk 0:01:12]} 27. g3 {[%clk 0:01:05]}  f5 {[%clk 0:01:10]} 28. Nf2 {[%clk 0:00:57]}  Qxe3 {[%clk 0:01:09]} 0-1


[Site "https://www.chess.com"]

[Event "Titled Tuesday Blitz August 08 Early 2023"]
[White "Koutlas, Nikolaos"]
[Black "MarijaKuznecova"]
[WhiteFideId "25827138"]
[WhiteElo "2497"]
[BlackElo "2343"]
[Result "0-1"]
[Round "4"]
[TimeControl "180+1"]
[Date "2023.08.08"]
[WhiteClock "0:01:28"]
[BlackClock "0:01:41"]
[Board "178"]

1. c4 {[%clk 0:02:43]}  c5 {[%clk 0:02:57]} 2. Nc3 {[%clk 0:02:43]}  Nc6 {[%clk 0:02:56]} 3. g3 {[%clk 0:02:44]}  e5 {[%clk 0:02:56]} 4. Bg2 {[%clk 0:02:45]}  d6 {[%clk 0:02:57]} 5. Nf3 {[%clk 0:02:46]}  g6 {[%clk 0:02:57]} 6. O-O {[%clk 0:02:47]}  Bg7 {[%clk 0:02:58]} 7. e3 {[%clk 0:02:47]}  Nge7 {[%clk 0:02:58]} 8. a3 {[%clk 0:02:48]}  O-O {[%clk 0:02:57]} 9. b4 {[%clk 0:02:48]}  cxb4 {[%clk 0:02:57]} 10. axb4 {[%clk 0:02:47]}  Nxb4 {[%clk 0:02:58]} 11. d4 {[%clk 0:02:47]}  exd4 {[%clk 0:02:56]} 12. exd4 {[%clk 0:02:47]}  Bf5 {[%clk 0:02:55]} 13. Ra4 {[%clk 0:02:39]}  Bc2 {[%clk 0:02:54]} 14. Rxb4 {[%clk 0:02:37]}  Bxd1 {[%clk 0:02:54]} 15. Rxd1 {[%clk 0:02:38]}  Qa5 {[%clk 0:02:24]} 16. Rb3 {[%clk 0:02:31]}  Rac8 {[%clk 0:02:23]} 17. Bg5 {[%clk 0:02:24]}  f6 {[%clk 0:02:20]} 18. Bf4 {[%clk 0:02:18]}  Rfd8 {[%clk 0:02:06]} 19. Nd2 {[%clk 0:02:07]}  g5 {[%clk 0:02:04]} 20. Be3 {[%clk 0:01:56]}  h6 {[%clk 0:02:00]} 21. Nd5 {[%clk 0:01:52]}  Nxd5 {[%clk 0:01:51]} 22. Bxd5+ {[%clk 0:01:52]}  Kh8 {[%clk 0:01:52]} 23. Rxb7 {[%clk 0:01:51]}  Rb8 {[%clk 0:01:49]} 24. Re7 {[%clk 0:01:39]}  Re8 {[%clk 0:01:42]} 25. Rd7 {[%clk 0:01:28]}  Qa4 {[%clk 0:01:41]} 0-1


[Site "https://www.chess.com"]

[Event "Titled Tuesday Blitz August 08 Early 2023"]
[White "NicolaiMaxime"]
[Black "Lesbekova, Assel"]
[BlackFideId "13713248"]
[WhiteElo "2494"]
[BlackElo "2331"]
[Result "1/2-1/2"]
[Round "4"]
[TimeControl "180+1"]
[Date "2023.08.08"]
[WhiteClock "0:00:13"]
[BlackClock "0:00:08"]
[Board "181"]

1. e4 {[%clk 0:02:58]}  e5 {[%clk 0:02:56]} 2. Nf3 {[%clk 0:02:58]}  Nf6 {[%clk 0:02:55]} 3. Nxe5 {[%clk 0:02:51]}  Nxe4 {[%clk 0:02:55]} 4. Qe2 {[%clk 0:02:49]}  Qe7 {[%clk 0:02:54]} 5. Qxe4 {[%clk 0:02:46]}  d6 {[%clk 0:02:55]} 6. d4 {[%clk 0:02:43]}  dxe5 {[%clk 0:02:55]} 7. Qxe5 {[%clk 0:02:43]}  Qxe5+ {[%clk 0:02:55]} 8. dxe5 {[%clk 0:02:43]}  Bf5 {[%clk 0:02:56]} 9. Nc3 {[%clk 0:02:37]}  Nc6 {[%clk 0:02:49]} 10. Bb5 {[%clk 0:02:31]}  O-O-O {[%clk 0:02:45]} 11. Bxc6 {[%clk 0:02:31]}  bxc6 {[%clk 0:02:46]} 12. Be3 {[%clk 0:02:30]}  Bxc2 {[%clk 0:02:42]} 13. Rc1 {[%clk 0:02:29]}  Bd3 {[%clk 0:02:39]} 14. Bxa7 {[%clk 0:02:26]}  Re8 {[%clk 0:02:22]} 15. Kd2 {[%clk 0:02:15]}  Ba6 {[%clk 0:02:15]} 16. Rhe1 {[%clk 0:02:11]}  g6 {[%clk 0:02:13]} 17. f4 {[%clk 0:01:58]}  Bh6 {[%clk 0:02:10]} 18. Be3 {[%clk 0:01:57]}  Rd8+ {[%clk 0:02:05]} 19. Kc2 {[%clk 0:01:57]}  Bd3+ {[%clk 0:02:03]} 20. Kb3 {[%clk 0:01:57]}  c5 {[%clk 0:01:59]} 21. a4 {[%clk 0:01:44]}  c4+ {[%clk 0:01:58]} 22. Ka2 {[%clk 0:01:44]}  Kb7 {[%clk 0:01:55]} 23. g3 {[%clk 0:01:42]}  Ra8 {[%clk 0:01:48]} 24. Bc5 {[%clk 0:01:41]}  Bf8 {[%clk 0:01:43]} 25. Bxf8 {[%clk 0:01:40]}  Rhxf8 {[%clk 0:01:44]} 26. e6 {[%clk 0:01:40]}  fxe6 {[%clk 0:01:37]} 27. Rxe6 {[%clk 0:01:41]}  Rfe8 {[%clk 0:01:32]} 28. Rce1 {[%clk 0:01:40]}  Rxe6 {[%clk 0:01:31]} 29. Rxe6 {[%clk 0:01:41]}  h5 {[%clk 0:01:25]} 30. Re7 {[%clk 0:01:40]}  Kc6 {[%clk 0:01:17]} 31. Ka3 {[%clk 0:01:40]}  Kd6 {[%clk 0:01:14]} 32. Rg7 {[%clk 0:01:39]}  c6 {[%clk 0:01:12]} 33. h3 {[%clk 0:01:32]}  Re8 {[%clk 0:01:12]} 34. g4 {[%clk 0:01:30]}  hxg4 {[%clk 0:01:08]} 35. hxg4 {[%clk 0:01:31]}  Kc5 {[%clk 0:01:06]} 36. Ra7 {[%clk 0:01:21]}  Re1 {[%clk 0:01:04]} 37. Ra5+ {[%clk 0:01:21]}  Kb6 {[%clk 0:00:59]} 38. Re5 {[%clk 0:01:19]}  Rf1 {[%clk 0:00:48]} 39. Re6 {[%clk 0:01:05]}  Kb7 {[%clk 0:00:36]} 40. Rf6 {[%clk 0:01:02]}  Kb6 {[%clk 0:00:32]} 41. Ka2 {[%clk 0:00:58]}  Kc5 {[%clk 0:00:29]} 42. a5 {[%clk 0:00:55]}  Bc2 {[%clk 0:00:29]} 43. b4+ {[%clk 0:00:43]}  cxb3+ {[%clk 0:00:25]} 44. Kb2 {[%clk 0:00:43]}  Rf2 {[%clk 0:00:20]} 45. Kc1 {[%clk 0:00:29]}  Bd3 {[%clk 0:00:17]} 46. Na4+ {[%clk 0:00:27]}  Kb4 {[%clk 0:00:18]} 47. Nb2 {[%clk 0:00:28]}  Bb5 {[%clk 0:00:18]} 48. a6 {[%clk 0:00:21]}  Bxa6 {[%clk 0:00:17]} 49. Rxc6 {[%clk 0:00:20]}  Bb5 {[%clk 0:00:14]} 50. Rb6 {[%clk 0:00:20]}  Kc5 {[%clk 0:00:14]} 51. Rxg6 {[%clk 0:00:19]}  Rxf4 {[%clk 0:00:12]} 52. Rg5+ {[%clk 0:00:19]}  Kb4 {[%clk 0:00:12]} 53. Rg8 {[%clk 0:00:16]}  Rf1+ {[%clk 0:00:11]} 54. Kd2 {[%clk 0:00:16]}  Rf2+ {[%clk 0:00:12]} 55. Kc1 {[%clk 0:00:17]}  Rc2+ {[%clk 0:00:09]} 56. Kb1 {[%clk 0:00:17]}  Bc6 {[%clk 0:00:08]} 57. Rc8 {[%clk 0:00:16]}  Kb5 {[%clk 0:00:07]} 58. Rb8+ {[%clk 0:00:16]}  Kc5 {[%clk 0:00:07]} 59. Rxb3 {[%clk 0:00:16]}  Rg2 {[%clk 0:00:07]} 60. Rc3+ {[%clk 0:00:15]}  Kd6 {[%clk 0:00:07]} 61. Nc4+ {[%clk 0:00:15]}  Kd5 {[%clk 0:00:07]} 62. Ne3+ {[%clk 0:00:15]}  Kd4 {[%clk 0:00:08]} 63. Nxg2 {[%clk 0:00:13]}  Kxc3 {[%clk 0:00:08]} 64. Nh4 {[%clk 0:00:11]}  Kd4 {[%clk 0:00:08]} 65. g5 {[%clk 0:00:12]}  Ke5 {[%clk 0:00:08]} 66. Kc2 {[%clk 0:00:12]}  Kf4 {[%clk 0:00:07]} 67. g6 {[%clk 0:00:12]}  Be4+ {[%clk 0:00:07]} 68. Kc3 {[%clk 0:00:13]}  Bxg6 {[%clk 0:00:08]} 1/2-1/2


[Site "https://www.chess.com"]

[Event "Titled Tuesday Blitz August 08 Early 2023"]
[White "Nguyen Hong Nhung"]
[Black "Rodriguez Santiago, Jaime"]
[WhiteFideId "12412201"]
[BlackFideId "3100898"]
[WhiteElo "2492"]
[BlackElo "2326"]
[Result "1/2-1/2"]
[Round "4"]
[TimeControl "180+1"]
[Date "2023.08.08"]
[WhiteClock "0:02:37"]
[BlackClock "0:02:51"]
[Board "184"]

1. e4 {[%clk 0:03:00]}  c6 {[%clk 0:02:59]} 2. d4 {[%clk 0:03:00]}  d5 {[%clk 0:03:00]} 3. Nc3 {[%clk 0:03:00]}  dxe4 {[%clk 0:02:59]} 4. Nxe4 {[%clk 0:03:01]}  Nf6 {[%clk 0:02:59]} 5. Nxf6+ {[%clk 0:03:01]}  exf6 {[%clk 0:03:00]} 6. c3 {[%clk 0:03:00]}  Bd6 {[%clk 0:02:59]} 7. Bd3 {[%clk 0:03:00]}  O-O {[%clk 0:02:59]} 8. Qc2 {[%clk 0:03:00]}  Re8+ {[%clk 0:02:58]} 9. Ne2 {[%clk 0:03:01]}  h5 {[%clk 0:02:58]} 10. Be3 {[%clk 0:03:01]}  Nd7 {[%clk 0:02:56]} 11. O-O-O {[%clk 0:03:01]}  Nf8 {[%clk 0:02:55]} 12. Kb1 {[%clk 0:03:00]}  Be6 {[%clk 0:02:55]} 13. h3 {[%clk 0:02:54]}  Bd5 {[%clk 0:02:54]} 14. Rhg1 {[%clk 0:02:52]}  Bh2 {[%clk 0:02:53]} 15. Rh1 {[%clk 0:02:51]}  Bd6 {[%clk 0:02:53]} 16. Rhg1 {[%clk 0:02:47]}  Bh2 {[%clk 0:02:52]} 17. Rh1 {[%clk 0:02:37]}  Bd6 {[%clk 0:02:51]} 1/2-1/2


[Site "https://www.chess.com"]

[Event "Titled Tuesday Blitz August 08 Early 2023"]
[White "Ocido, Michael"]
[Black "Dong Khanh Linh"]
[WhiteFideId "115201920"]
[BlackFideId "12403040"]
[WhiteElo "2486"]
[BlackElo "2316"]
[Result "1-0"]
[Round "4"]
[TimeControl "180+1"]
[Date "2023.08.08"]
[WhiteClock "0:00:14"]
[BlackClock "0:00:06"]
[Board "188"]

1. d4 {[%clk 0:03:00]}  f5 {[%clk 0:02:58]} 2. Bg5 {[%clk 0:02:59]}  h6 {[%clk 0:02:57]} 3. Bh4 {[%clk 0:02:59]}  g5 {[%clk 0:02:58]} 4. Bg3 {[%clk 0:02:59]}  Nf6 {[%clk 0:02:57]} 5. e3 {[%clk 0:02:55]}  e6 {[%clk 0:02:57]} 6. h4 {[%clk 0:02:47]}  Rg8 {[%clk 0:02:57]} 7. hxg5 {[%clk 0:02:46]}  hxg5 {[%clk 0:02:57]} 8. Nf3 {[%clk 0:02:26]}  d6 {[%clk 0:02:51]} 9. Nbd2 {[%clk 0:02:25]}  Nc6 {[%clk 0:02:50]} 10. c3 {[%clk 0:02:23]}  Qe7 {[%clk 0:02:47]} 11. Bd3 {[%clk 0:02:23]}  Bd7 {[%clk 0:02:47]} 12. Qc2 {[%clk 0:02:11]}  O-O-O {[%clk 0:02:30]} 13. O-O-O {[%clk 0:02:11]}  Ng4 {[%clk 0:02:20]} 14. d5 {[%clk 0:01:54]}  Nce5 {[%clk 0:02:11]} 15. dxe6 {[%clk 0:01:49]}  Nxd3+ {[%clk 0:02:03]} 16. Qxd3 {[%clk 0:01:50]}  Bxe6 {[%clk 0:02:02]} 17. Nd4 {[%clk 0:01:48]}  Ne5 {[%clk 0:01:56]} 18. Qc2 {[%clk 0:01:42]}  Qf7 {[%clk 0:01:43]} 19. Nxe6 {[%clk 0:01:15]}  Qxe6 {[%clk 0:01:44]} 20. Nb3 {[%clk 0:01:11]}  Nc6 {[%clk 0:01:16]} 21. Rh7 {[%clk 0:00:57]}  Bg7 {[%clk 0:01:06]} 22. Kb1 {[%clk 0:00:55]}  Bf6 {[%clk 0:00:51]} 23. Nd4 {[%clk 0:00:55]}  Nxd4 {[%clk 0:00:50]} 24. cxd4 {[%clk 0:00:56]}  Rd7 {[%clk 0:00:38]} 25. Rdh1 {[%clk 0:00:47]}  f4 {[%clk 0:00:18]} 26. exf4 {[%clk 0:00:23]}  gxf4 {[%clk 0:00:19]} 27. Bxf4 {[%clk 0:00:23]}  Rxh7 {[%clk 0:00:16]} 28. Rxh7 {[%clk 0:00:20]}  Qe1+ {[%clk 0:00:14]} 29. Bc1 {[%clk 0:00:20]}  Bd8 {[%clk 0:00:13]} 30. Qf5+ {[%clk 0:00:16]}  Kb8 {[%clk 0:00:13]} 31. Qf3 {[%clk 0:00:14]}  Bg5 {[%clk 0:00:12]} 32. Qc3 {[%clk 0:00:14]}  Rc8 {[%clk 0:00:06]} 33. Qxe1 {[%clk 0:00:14]} 1-0


[Site "https://www.chess.com"]